bitfinex/quotes_BTCUSD_20250212
["timestamp","ask_amount","ask_price","bid_price","bid_amount"]
[1739343518204,0.156289,95976.0,95967.0,0.00853084]
[1739343518732,0.156289,95976.0,95967.0,0.00753084]
[1739343519151,0.158287,95977.0,95967.0,0.00753084]
[1739343520186,0.157287,95977.0,95967.0,0.00753084]
[1739343520501,0.157287,95977.0,95967.0,0.00853084]
[1739343520715,0.001,95977.0,95967.0,0.00853084]
[1739343520890,0.1501066,95978.0,95967.0,0.00753084]
[1739343521094,0.1501066,95978.0,95967.0,0.16383284]
[1739343521504,0.3063916,95978.0,95967.0,0.16383284]
[1739343521882,0.002,95977.0,95967.0,0.16383284]
[1739343522407,0.002,95977.0,95975.0,0.156289]
[1739343522579,0.002,95977.0,95976.0,0.1263418]
[1739343522789,0.001,95977.0,95976.0,0.13386984]
[1739343523193,0.001,95977.0,95976.0,0.13282804]
[1739343523620,0.001,95977.0,95976.0,0.23533169]
[1739343523820,0.0001066,95978.0,95977.0,0.282287]
[1739343523982,0.0011066,95978.0,95977.0,0.38479065]
[1739343524607,0.0001066,95978.0,95977.0,0.38479065]
[1739343525241,0.0001066,95978.0,95977.0,0.38879065]
[1739343526580,0.0011066,95978.0,95977.0,0.40430553]
[1739343527159,0.0011066,95978.0,95977.0,0.49658231]
[1739343528472,0.0011066,95978.0,95977.0,0.40430553]
[1739343529222,0.0011066,95978.0,95977.0,0.40030553]
[1739343529398,0.0001066,95978.0,95977.0,0.39230553]
[1739343529941,0.0011066,95978.0,95977.0,0.40230553]
[1739343530345,0.0001066,95978.0,95977.0,0.39230553]
[1739343530582,0.0011066,95978.0,95977.0,0.50180918]
[1739343530786,0.0021066,95978.0,95977.0,0.51680918]
[1739343538138,0.0021066,95978.0,95977.0,0.41430553]
[1739343546734,0.0021066,95978.0,95977.0,0.18580188]
[1739343547528,0.0021066,95978.0,95977.0,0.17184358]
[1739343547529,0.0011066,95978.0,95977.0,0.17184358]
[1739343547938,0.0011066,95978.0,95977.0,0.17880188]
[1739343548119,0.0021066,95978.0,95977.0,0.18580188]
[1739343548526,0.0011066,95978.0,95977.0,0.16380188]
[1739343548876,0.0031066,95978.0,95977.0,0.18580188]
[1739343550901,0.0031066,95978.0,95977.0,0.18684358]
[1739343559488,0.0031066,95978.0,95977.0,0.02951488]
[1739343559866,0.0031066,95978.0,95977.0,0.18580188]
[1739343560510,0.0021066,95978.0,95977.0,0.17080188]
[1739343560912,0.0021066,95978.0,95977.0,0.17680188]
[1739343561119,0.0001066,95978.0,95977.0,0.16980188]
[1739343561254,0.0001066,95978.0,95977.0,0.16380188]
[1739343561467,0.0001066,95978.0,95977.0,0.16580188]
[1739343561663,0.0001066,95978.0,95977.0,0.16984369]
[1739343562301,0.0001066,95978.0,95977.0,0.17184369]
[1739343563234,0.0001066,95978.0,95977.0,0.16484369]
[1739343563433,0.0011066,95978.0,95977.0,0.17584369]
[1739343563936,0.0001066,95978.0,95977.0,0.16484369]
[1739343564091,0.0001066,95978.0,95977.0,0.16380188]
[1739343564293,0.0001066,95978.0,95977.0,0.16880188]
[1739343564761,0.0011066,95978.0,95977.0,0.18080188]
[1739343564964,0.0011066,95978.0,95977.0,0.17580188]
[1739343565378,0.0011066,95978.0,95977.0,0.18080188]
[1739343566162,0.0001066,95978.0,95977.0,0.16880188]
[1739343566364,0.0011066,95978.0,95977.0,0.18080188]
[1739343572614,0.0011066,95978.0,95977.0,0.18316861]
[1739343573059,0.04388725,95987.0,95977.0,0.02688161]
[1739343573259,0.023,95985.0,95977.0,0.02688161]
[1739343573483,0.023,95983.0,95977.0,0.017]
[1739343573767,0.0495,95986.0,95977.0,0.017]
[1739343573768,0.156285,95978.0,95977.0,0.017]
[1739343573959,0.156285,95978.0,95977.0,0.005]
[1739343574186,0.156285,95978.0,95977.0,0.011]
[1739343574523,0.156283,95980.0,95977.0,0.011]
[1739343575460,0.156283,95980.0,95977.0,0.006]
[1739343575669,0.156284,95979.0,95976.0,0.00022386]
[1739343575843,0.156284,95979.0,95977.0,0.002]
[1739343576021,0.001,95978.0,95977.0,0.015]
[1739343576230,0.001,95978.0,95977.0,0.013]
[1739343576426,0.023,95980.0,95977.0,0.001]
[1739343576775,0.179282,95980.0,95977.0,0.003]
[1739343577175,0.179282,95980.0,95976.0,0.00022386]
[1739343577380,0.023,95982.0,95976.0,0.00022386]
[1739343577554,0.231368,95984.0,95977.0,0.005]
[1739343577783,0.156282,95980.0,95977.0,0.005]
[1739343578817,0.156282,95980.0,95976.0,0.00022386]
[1739343579055,0.156282,95980.0,95977.0,0.001]
[1739343579445,0.156282,95980.0,95976.0,0.00022386]
[1739343579645,0.023,95981.0,95977.0,0.001]
[1739343580245,0.023,95983.0,95977.0,0.001]
[1739343580480,0.023,95980.0,95977.0,0.003]
[1739343580701,0.023,95983.0,95977.0,0.004]
[1739343581526,0.179277,95983.0,95977.0,0.004]
[1739343582186,0.0495,95986.0,95979.0,0.156283]
[1739343582390,0.02088725,95987.0,95980.0,0.19287109]
[1739343582521,0.02088725,95987.0,95980.0,0.156281]
[1739343582727,0.02088725,95987.0,95981.0,0.15628]
[1739343583352,0.001,95986.0,95979.0,0.156282]
[1739343583534,0.001,95986.0,95980.0,0.156282]
[1739343583735,0.001,95986.0,95981.0,0.15628]
[1739343584139,0.025,95987.0,95981.0,0.15628]
[1739343584342,0.181272,95987.0,95980.0,0.156281]
[1739343584514,0.001,95986.0,95980.0,0.156281]
[1739343585423,0.002,95986.0,95980.0,0.156281]
[1739343585652,0.001,95986.0,95980.0,0.156281]
[1739343586055,0.002,95986.0,95980.0,0.156281]
[1739343586258,0.001,95986.0,95978.0,0.208379]
[1739343586447,0.002,95986.0,95981.0,0.15628]
[1739343586808,0.002,95986.0,95979.0,0.208378]
[1739343587364,0.023,95987.0,95979.0,0.208378]
[1739343587572,0.001,95986.0,95981.0,0.156279]
[1739343588409,0.002,95986.0,95981.0,0.156279]
[1739343588569,0.002,95986.0,95980.0,0.156281]
[1739343589034,0.179272,95987.0,95980.0,0.156281]
[1739343589258,0.001,95986.0,95980.0,0.156281]
[1739343589434,0.002,95986.0,95980.0,0.156281]
[1739343589659,0.001,95986.0,95980.0,0.156281]
[1739343590070,0.001,95986.0,95981.0,0.156279]
[1739343590623,0.002,95986.0,95981.0,0.156279]
[1739343590827,0.002,95986.0,95982.0,0.156279]
[1739343591888,0.002,95986.0,95978.0,0.208381]
[1739343592092,0.001,95986.0,95981.0,0.15628]
[1739343592292,0.179271,95987.0,95981.0,0.15628]
[1739343592473,0.001,95986.0,95981.0,0.15628]
[1739343592651,0.023,95987.0,95981.0,0.15628]
[1739343592854,0.001,95986.0,95981.0,0.15628]
[1739343593435,0.023,95987.0,95978.0,0.208381]
[1739343593657,0.001,95986.0,95977.0,0.00022386]
[1739343593834,0.001,95986.0,95977.0,0.15650986]
[1739343594043,0.156274,95985.0,95977.0,0.15650986]
[1739343594217,0.001,95986.0,95978.0,0.156284]
[1739343595054,0.156276,95984.0,95978.0,0.156284]
[1739343595441,0.232362,95987.0,95979.0,0.156283]
[1739343595606,0.156276,95984.0,95977.0,0.15650986]
[1739343595835,0.156276,95984.0,95980.0,0.00022386]
[1739343598135,0.156274,95986.0,95980.0,0.00022386]
[1739343598339,0.0001066,95990.0,95980.0,0.05769612]
[1739343598520,0.156273,95986.0,95980.0,0.00022386]
[1739343599255,0.156273,95986.0,95980.0,0.15650486]
[1739343599672,0.156273,95986.0,95980.0,0.15750586]
[1739343600046,0.156273,95986.0,95980.0,0.15650586]
[1739343600266,0.157273,95986.0,95980.0,0.15650586]
[1739343600500,0.002,95986.0,95981.0,0.15628]
[1739343600945,0.002,95986.0,95980.0,0.00022386]
[1739343601082,0.002,95986.0,95980.0,0.15650486]
[1739343601445,0.002,95986.0,95980.0,0.00022386]
[1739343601728,0.001,95986.0,95980.0,0.00022386]
[1739343602080,0.001,95986.0,95981.0,0.15628]
[1739343602284,0.001,95986.0,95980.0,0.00022386]
[1739343602508,0.002,95986.0,95982.0,0.156278]
[1739343603077,0.001,95986.0,95982.0,0.156278]
[1739343603304,0.0195136,95985.0,95984.0,0.156275]
[1739343603734,0.0195136,95985.0,95982.0,0.156279]
[1739343604182,0.0195136,95985.0,95983.0,0.156276]
[1739343605021,0.002,95986.0,95983.0,0.156276]
[1739343605022,0.0195136,95984.0,95983.0,0.156276]
[1739343606276,0.0001066,95990.0,95985.0,0.156274]
[1739343606977,0.0001066,95990.0,95986.0,0.156272]
[1739343607997,0.0001066,95990.0,95985.0,0.156274]
[1739343608203,0.0001066,95990.0,95983.0,0.161276]
[1739343608381,0.0001066,95990.0,95981.0,0.15628]
[1739343608583,0.0001066,95990.0,95986.0,0.001]
[1739343609053,0.0001066,95990.0,95988.0,0.156268]
[1739343611437,0.0001066,95990.0,95988.0,0.001]
[1739343611915,0.0001066,95990.0,95984.0,0.156275]
[1739343612117,0.0001066,95990.0,95980.0,0.00022386]
[1739343612337,0.156275,95985.0,95980.0,0.00022386]
[1739343612953,0.17579929,95984.0,95980.0,0.00022386]
[1739343613151,0.01952329,95984.0,95980.0,0.00022386]
[1739343613287,0.09600126,95990.0,95980.0,0.00022386]
[1739343613490,0.156274,95986.0,95980.0,0.00222386]
[1739343613687,0.156277,95984.0,95980.0,0.00222386]
[1739343613895,0.156273,95986.0,95980.0,0.00022386]
[1739343614331,0.09600126,95990.0,95980.0,0.00022386]
[1739343614535,0.15628,95982.0,95980.0,0.00522386]
[1739343615007,0.15628,95982.0,95980.0,0.00022386]
[1739343615185,0.15628,95982.0,95980.0,0.00222386]
[1739343615358,0.15628,95982.0,95980.0,0.00422386]
[1739343615764,0.15628,95982.0,95980.0,0.00322386]
[1739343615945,0.00780965,95981.0,95980.0,0.01022386]
[1739343616944,0.00780965,95981.0,95980.0,0.00722386]
[1739343617183,0.00780965,95981.0,95980.0,0.00022386]
[1739343617594,0.00880965,95981.0,95980.0,0.00822386]
[1739343618324,0.00880965,95981.0,95980.0,0.01122386]
[1739343622302,0.16508965,95981.0,95980.0,0.01122386]
[1739343623963,0.2905933,95981.0,95980.0,0.01122386]
[1739343624138,0.32182161,95981.0,95980.0,0.01122386]
[1739343624965,0.32082161,95981.0,95980.0,0.00322386]
[1739343625166,0.32082161,95981.0,95980.0,0.00022386]
[1739343625751,0.34033249,95981.0,95980.0,0.00022386]
[1739343627407,0.30910418,95981.0,95980.0,0.00022386]
[1739343632011,0.45910418,95981.0,95980.0,0.00022386]
[1739343632585,0.58360418,95981.0,95980.0,0.00022386]
[1739343633054,0.59112418,95981.0,95980.0,0.00022386]
[1739343633774,0.59412418,95981.0,95980.0,0.00022386]
[1739343634183,0.60112418,95981.0,95980.0,0.00122386]
[1739343635222,0.59812418,95981.0,95980.0,0.00122386]
[1739343635606,0.60212418,95981.0,95980.0,0.00122386]
[1739343635910,0.61845181,95981.0,95980.0,0.00122386]
[1739343636123,0.62145181,95981.0,95980.0,0.00122386]
[1739343637501,0.94705181,95981.0,95980.0,0.00122386]
[1739343638181,0.82255181,95981.0,95980.0,0.00122386]
[1739343638647,0.81503181,95981.0,95980.0,0.00122386]
[1739343638890,0.82255181,95981.0,95980.0,0.00122386]
[1739343639288,0.81503181,95981.0,95980.0,0.00122386]
[1739343639408,0.67320053,95981.0,95980.0,0.00122386]
[1739343639614,0.52320053,95981.0,95980.0,0.00122386]
[1739343640043,0.51692053,95981.0,95980.0,0.00122386]
[1739343640244,0.49740965,95981.0,95980.0,0.00122386]
[1739343640462,0.4896,95981.0,95980.0,0.0112856]
[1739343640759,0.4896,95981.0,95980.0,0.00122386]
[1739343640976,0.4896,95981.0,95980.0,0.0112856]
[1739343642405,0.4826,95981.0,95980.0,0.0112856]
[1739343642789,0.4766,95981.0,95980.0,0.0102856]
[1739343643117,0.4836,95981.0,95980.0,0.0112856]
[1739343643524,0.158,95981.0,95980.0,0.00122386]
[1739343643692,0.151,95981.0,95980.0,0.00022386]
[1739343644636,0.153,95981.0,95980.0,0.00022386]
[1739343648744,0.208364,95986.0,95980.0,0.00022386]
[1739343649229,0.156274,95985.0,95980.0,0.00022386]
[1739343649476,0.156277,95983.0,95980.0,0.00022386]
[1739343649730,0.01258683,95986.0,95980.0,0.00022386]
[1739343649971,0.01258683,95986.0,95980.0,0.02889012]
[1739343650209,0.006,95986.0,95980.0,0.02989012]
[1739343650421,0.006,95986.0,95980.0,0.00122386]
[1739343650634,0.156274,95985.0,95980.0,0.00022386]
[1739343650859,0.003,95983.0,95980.0,0.00022386]
[1739343652545,0.003,95983.0,95982.0,0.156279]
[1739343652728,0.0001066,95987.0,95982.0,0.156279]
[1739343652945,0.001,95983.0,95982.0,0.156279]
[1739343653150,0.001,95983.0,95981.0,0.15628]
[1739343653491,0.001,95983.0,95982.0,0.04604179]
[1739343653713,0.001,95983.0,95982.0,0.1205]
[1739343654323,0.0061066,95987.0,95986.0,0.156272]
[1739343654527,0.0001066,95987.0,95986.0,0.156272]
[1739343654723,0.0031066,95987.0,95986.0,0.156272]
[1739343655481,0.0001066,95987.0,95986.0,0.156272]
[1739343655871,0.0001066,95987.0,95986.0,0.159272]
[1739343656045,0.0001066,95987.0,95986.0,0.156272]
[1739343657068,0.0001066,95987.0,95986.0,0.163272]
[1739343657271,0.0011066,95987.0,95986.0,0.163272]
[1739343657933,0.0011066,95987.0,95986.0,0.166272]
[1739343658974,0.0011066,95987.0,95986.0,0.24281368]
[1739343659362,0.0011066,95987.0,95986.0,0.241772]
[1739343662449,0.0011066,95987.0,95986.0,0.166272]
[1739343673716,0.0011066,95987.0,95986.0,0.35037565]
[1739343673936,0.0011066,95987.0,95986.0,0.39957565]
[1739343674154,0.0011066,95987.0,95986.0,0.51471602]
[1739343674709,0.0011066,95987.0,95986.0,0.51171602]
[1739343674938,0.0001066,95987.0,95986.0,0.50471602]
[1739343675252,0.0011066,95987.0,95986.0,0.51871602]
[1739343675607,6e-07,95987.0,95986.0,0.50971602]
[1739343675813,2e-07,95990.0,95989.0,0.156267]
[1739343676009,2e-07,95990.0,95989.0,0.64311562]
[1739343676222,2e-07,95990.0,95989.0,0.6420743]
[1739343676858,2e-07,95990.0,95989.0,0.6520743]
[1739343677654,2e-07,95990.0,95989.0,0.65818305]
[1739343678299,2e-07,95990.0,95989.0,0.67218305]
[1739343679148,2e-07,95990.0,95989.0,1.20708305]
[1739343679522,2e-07,95990.0,95989.0,1.21208305]
[1739343680584,0.0001066,95995.0,95994.0,0.316259]
[1739343680585,8e-07,95995.0,95994.0,0.316259]
[1739343680790,8e-07,95995.0,95994.0,0.6470663]
[1739343681353,8e-07,95995.0,95994.0,0.6546946]
[1739343681837,9e-08,95995.0,95994.0,0.6666946]
[1739343682037,9e-08,95995.0,95994.0,0.6696946]
[1739343684102,9e-08,95995.0,95994.0,1.2045946]
[1739343684276,9e-08,95995.0,95994.0,1.2275946]
[1739343684890,9e-08,95995.0,95994.0,1.2245946]
[1739343685116,9e-08,95995.0,95994.0,1.2275946]
[1739343685496,9e-08,95995.0,95994.0,1.2125946]
[1739343685698,9e-08,95995.0,95994.0,1.2295946]
[1739343685900,9e-08,95995.0,95994.0,1.2445946]
[1739343686122,0.0001066,96026.0,96024.0,0.15621]
[1739343686245,0.00016194,96025.0,96024.0,0.35373465]
[1739343686470,0.00016194,96025.0,96024.0,0.36121961]
[1739343687524,0.00016194,96025.0,96024.0,0.37521961]
[1739343688682,0.00016194,96025.0,96024.0,0.37821961]
[1739343696338,0.00016194,96025.0,96024.0,0.36121961]
[1739343696536,0.00016194,96025.0,96024.0,0.37521961]
[1739343697165,0.00016194,96025.0,96024.0,0.36121961]
[1739343697530,0.00016194,96025.0,96024.0,0.37521961]
[1739343698080,0.00016194,96025.0,96024.0,0.36121961]
[1739343698250,0.00016194,96025.0,96024.0,0.37921961]
[1739343698425,0.00016194,96025.0,96024.0,0.37521961]
[1739343698858,5.4e-07,96026.0,96024.0,0.37521961]
[1739343699187,0.0001066,96039.0,96028.0,0.234704]
[1739343699188,4e-08,96029.0,96028.0,0.234704]
[1739343699315,4e-08,96029.0,96028.0,0.33720765]
[1739343699517,4e-08,96029.0,96028.0,0.34464712]
[1739343699718,4e-08,96029.0,96028.0,0.49464712]
[1739343700301,4e-08,96029.0,96028.0,0.55194712]
[1739343700497,4e-08,96029.0,96028.0,0.65445077]
[1739343700693,4e-08,96029.0,96028.0,0.66945077]
[1739343701082,0.15,96075.0,96065.0,0.156143]
[1739343701285,0.00044287,96070.0,96059.0,0.156152]
[1739343701541,0.09633753,96070.0,96046.0,0.208233]
[1739343701751,0.09633753,96070.0,96047.0,0.13117695]
[1739343702139,0.09633753,96070.0,96060.0,0.156151]
[1739343702347,0.09633753,96070.0,96060.0,0.156152]
[1739343702501,0.09633753,96070.0,96061.0,0.15615]
[1739343702707,0.09633753,96070.0,96061.0,0.14319863]
[1739343702911,0.09633753,96070.0,96047.0,0.13117695]
[1739343703125,0.09633753,96070.0,96062.0,0.00743905]
[1739343703422,0.09633753,96070.0,96060.0,0.156152]
[1739343703555,0.09633753,96070.0,96063.0,0.00743903]
[1739343703752,0.09633753,96070.0,96056.0,0.208211]
[1739343703955,0.1251,96069.0,96064.0,0.00743902]
[1739343704159,0.1251,96069.0,96061.0,0.15615]
[1739343704340,0.1251,96069.0,96065.0,0.00743901]
[1739343704545,0.1251,96069.0,96061.0,0.15615]
[1739343704764,0.1251,96069.0,96058.0,0.208207]
[1739343704765,0.1251,96069.0,96066.0,0.007439]
[1739343704968,0.1251,96069.0,96062.0,0.0364357]
[1739343705202,0.1251,96069.0,96067.0,0.00743898]
[1739343705407,0.1251,96069.0,96062.0,0.0364357]
[1739343705829,0.1251,96069.0,96063.0,0.00743903]
[1739343706036,0.1251,96069.0,96061.0,0.15615]
[1739343706186,0.1251,96069.0,96062.0,0.00743905]
[1739343706372,0.1251,96069.0,96048.0,0.04179099]
[1739343706599,0.1251,96069.0,96060.0,0.156151]
[1739343706844,0.1251,96069.0,96061.0,0.16358906]
[1739343707121,0.1251,96069.0,96062.0,0.156149]
[1739343707549,0.1251,96069.0,96063.0,0.00743903]
[1739343708338,0.1251,96069.0,96051.0,0.20822]
[1739343708530,0.1251,96069.0,96057.0,0.156157]
[1739343708707,0.1251,96069.0,96054.0,0.208215]
[1739343708849,0.1251,96069.0,96058.0,0.00739357]
[1739343709060,0.09589466,96068.0,96058.0,0.00739357]
[1739343709286,0.09589466,96068.0,96049.0,0.208227]
[1739343709484,0.09589466,96060.0,96059.0,0.00739356]
[1739343709684,0.023,96068.0,96055.0,0.156159]
[1739343709891,0.023,96068.0,96059.0,0.00736585]
[1739343710096,0.023,96068.0,96056.0,0.156158]
[1739343710298,0.023,96068.0,96045.0,0.08364526]
[1739343710550,0.023,96068.0,96057.0,0.16352188]
[1739343710727,0.023,96068.0,96057.0,0.156156]
[1739343710929,0.023,96068.0,96058.0,0.00736587]
[1739343712356,0.023,96068.0,96058.0,0.16352087]
[1739343713339,0.023,96068.0,96058.0,0.00736587]
[1739343713515,0.0822,96061.0,96058.0,0.00736587]
[1739343713723,0.15616,96056.0,96041.0,0.08364526]
[1739343713927,0.09589466,96051.0,96042.0,0.208241]
[1739343714123,0.306155,96059.0,96043.0,0.20824]
[1739343714294,0.09589466,96053.0,96048.0,0.156171]
[1739343714476,0.32671564,96059.0,96048.0,0.156171]
[1739343714690,0.32671564,96059.0,96049.0,0.007369]
[1739343714869,0.156159,96056.0,96044.0,0.156177]
[1739343715064,0.09589466,96054.0,96050.0,0.00736899]
[1739343715268,0.208209,96057.0,96042.0,0.00022365]
[1739343715489,0.17056064,96059.0,96042.0,0.00022365]
[1739343715490,0.09589466,96052.0,96045.0,0.156176]
[1739343715700,0.09589466,96052.0,96043.0,0.21560707]
[1739343715908,0.09589466,96052.0,96046.0,0.00739731]
[1739343716112,0.25205366,96056.0,96045.0,0.156176]
[1739343716315,0.25205366,96056.0,96047.0,0.0073973]
[1739343716619,0.156159,96056.0,96046.0,0.00739731]
[1739343716800,0.156159,96056.0,96048.0,0.00739729]
[1739343716935,0.18288393,96059.0,96047.0,0.0073973]
[1739343717148,0.156164,96053.0,96049.0,0.00739727]
[1739343717343,0.156162,96054.0,96048.0,0.00739729]
[1739343717544,0.156162,96054.0,96047.0,0.001]
[1739343717749,0.023,96057.0,96047.0,0.001]
[1739343717962,0.306171,96048.0,96047.0,0.001]
[1739343718165,0.411371,96048.0,96047.0,0.001]
[1739343718581,0.15618,96043.0,96042.0,0.00022365]
[1739343720297,0.156178,96044.0,96042.0,0.00022365]
[1739343720887,0.156179,96044.0,96042.0,0.00022365]
[1739343721020,0.29602646,96043.0,96042.0,0.00022365]
[1739343721227,0.42512646,96043.0,96042.0,0.00022365]
[1739343721654,0.45687177,96043.0,96042.0,0.00022365]
[1739343722017,0.42512646,96043.0,96042.0,0.00022365]
[1739343722222,0.44144397,96043.0,96042.0,0.00022365]
[1739343722521,0.4722162,96043.0,96042.0,0.00022365]
[1739343722754,0.4722162,96043.0,96042.0,0.00122365]
[1739343722973,0.44344397,96043.0,96042.0,0.00222365]
[1739343723584,0.45100397,96043.0,96042.0,0.00222365]
[1739343723957,0.45025397,96043.0,96042.0,0.00222365]
[1739343724162,0.44269397,96043.0,96042.0,0.00222365]
[1739343724388,0.36049397,96043.0,96042.0,0.00222365]
[1739343724792,0.36049397,96043.0,96042.0,0.00122365]
[1739343725197,0.19709032,96043.0,96042.0,0.00122365]
[1739343725391,0.19709032,96043.0,96042.0,0.00222365]
[1739343725601,0.19309032,96043.0,96042.0,0.00122365]
[1739343725950,0.20309032,96043.0,96042.0,0.00122365]
[1739343726545,0.19309032,96043.0,96042.0,0.00122365]
[1739343726779,0.20809032,96043.0,96042.0,0.00222365]
[1739343726964,0.20109032,96043.0,96042.0,0.00122365]
[1739343727195,0.32659397,96043.0,96042.0,0.00122365]
[1739343727484,0.45999397,96043.0,96042.0,0.00122365]
[1739343728503,0.96456677,96043.0,96042.0,0.00022365]
[1739343728934,0.97356677,96043.0,96042.0,0.00122365]
[1739343729140,0.96956677,96043.0,96042.0,0.00122365]
[1739343729344,0.96456677,96043.0,96042.0,0.00022365]
[1739343729646,1.30916677,96043.0,96042.0,0.00122365]
[1739343729951,1.32460522,96043.0,96042.0,0.00122365]
[1739343730076,1.35930379,96043.0,96042.0,0.00222365]
[1739343730276,1.36707227,96043.0,96042.0,0.00222365]
[1739343730503,1.3363737,96043.0,96042.0,0.00222365]
[1739343731625,1.35269287,96043.0,96042.0,0.00222365]
[1739343731886,1.34036069,96043.0,96042.0,0.00222365]
[1739343732061,1.33036069,96043.0,96042.0,0.00222365]
[1739343732396,1.18119269,96043.0,96042.0,0.00222365]
[1739343732765,1.09429169,96043.0,96042.0,0.00222365]
[1739343732967,1.08929169,96043.0,96042.0,0.00122365]
[1739343733345,1.09329169,96043.0,96042.0,0.00122365]
[1739343733545,1.10789169,96043.0,96042.0,0.00122365]
[1739343734311,1.08071008,96043.0,96042.0,0.00122365]
[1739343734728,1.06871008,96043.0,96042.0,0.00022365]
[1739343734927,1.08071008,96043.0,96042.0,0.00122365]
[1739343735439,1.06171008,96043.0,96042.0,0.00022365]
[1739343735616,1.06871008,96043.0,96042.0,0.00122365]
[1739343735834,1.08071008,96043.0,96042.0,0.00122365]
[1739343736417,1.07371008,96043.0,96042.0,0.00122365]
[1739343736643,1.07371008,96043.0,96042.0,0.00022365]
[1739343736644,1.05171008,96043.0,96042.0,0.00022365]
[1739343736775,1.05871008,96043.0,96042.0,0.00022365]
[1739343736981,1.05171008,96043.0,96042.0,0.00022365]
[1739343738587,1.07271008,96043.0,96042.0,0.00122365]
[1739343739128,1.05871008,96043.0,96042.0,0.00022365]
[1739343739352,1.07281658,96043.0,96042.0,0.00122365]
[1739343739750,1.05181658,96043.0,96042.0,0.00022365]
[1739343739952,1.05958369,96043.0,96042.0,0.00022365]
[1739343740212,1.08058369,96043.0,96042.0,0.00122365]
[1739343740548,1.1000039,96043.0,96042.0,0.00122365]
[1739343742449,0.8259279,96043.0,96042.0,0.00122365]
[1739343742957,0.85767321,96043.0,96042.0,0.00122365]
[1739343745601,0.8259279,96043.0,96042.0,0.00122365]
[1739343746346,0.68837141,96043.0,96042.0,0.00122365]
[1739343746929,0.70956776,96043.0,96042.0,0.00122365]
[1739343747907,0.68314755,96043.0,96042.0,0.00122365]
[1739343748233,0.66838044,96043.0,96042.0,0.00022365]
[1739343748793,0.85438044,96043.0,96042.0,0.00122365]
[1739343749951,0.80264144,96043.0,96042.0,0.00122365]
[1739343750481,0.64504144,96043.0,96042.0,0.00122365]
[1739343750637,0.62277427,96043.0,96042.0,0.00122365]
[1739343750838,0.59703427,96043.0,96042.0,0.00122365]
[1739343751245,0.61590127,96043.0,96042.0,0.00122365]
[1739343751651,0.59290127,96043.0,96042.0,0.00122365]
[1739343751852,0.43530127,96043.0,96042.0,0.00122365]
[1739343752083,0.36690285,96043.0,96042.0,0.00122365]
[1739343752506,0.3864045,96043.0,96042.0,0.00122365]
[1739343752731,0.3734045,96043.0,96042.0,0.00022365]
[1739343752961,0.3664045,96043.0,96042.0,0.00022365]
[1739343753120,0.3794045,96043.0,96042.0,0.00122365]
[1739343753322,0.39120437,96043.0,96042.0,0.00122365]
[1739343754561,0.37000802,96043.0,96042.0,0.00122365]
[1739343754773,0.37000802,96043.0,96042.0,0.08082365]
[1739343754774,0.36220815,96043.0,96042.0,0.08082365]
[1739343754999,0.34920815,96043.0,96042.0,0.07982365]
[1739343755382,0.3367065,96043.0,96042.0,0.08853404]
[1739343755580,0.3327065,96043.0,96042.0,0.08853404]
[1739343755778,0.3287065,96043.0,96042.0,0.08753404]
[1739343755979,0.0031065,96043.0,96042.0,0.11646624]
[1739343756188,0.0071065,96043.0,96042.0,0.08753404]
[1739343758712,0.0067765,96043.0,96042.0,0.08753404]
[1739343760766,0.02625984,96043.0,96042.0,0.08753404]
[1739343760962,0.03405317,96043.0,96042.0,0.08753404]
[1739343761618,0.01456983,96043.0,96042.0,0.08753404]
[1739343762241,0.006883,96043.0,96042.0,0.08753404]
[1739343762800,0.006883,96043.0,96042.0,0.11646624]
[1739343763004,0.006883,96043.0,96042.0,0.08753404]
[1739343763792,0.006883,96043.0,96042.0,0.2192793]
[1739343763994,0.006883,96043.0,96042.0,0.13563404]
[1739343764932,0.002883,96043.0,96042.0,0.13563404]
[1739343765112,0.0001065,96043.0,96042.0,0.13563404]
[1739343765512,0.0011065,96043.0,96042.0,0.13563404]
[1739343766124,0.0011065,96043.0,96042.0,0.13663404]
[1739343774570,0.0011065,96043.0,96042.0,0.18278362]
[1739343775212,0.0011065,96043.0,96042.0,0.13663404]
[1739343778344,0.0011065,96043.0,96042.0,0.29281504]
[1739343780858,0.0011065,96043.0,96042.0,0.13663404]
[1739343781495,0.0011065,96043.0,96042.0,0.13563404]
[1739343781646,0.0001065,96043.0,96042.0,0.13563404]
[1739343781839,0.0001065,96043.0,96042.0,0.13663404]
[1739343782039,0.0001065,96043.0,96042.0,0.29281504]
[1739343782583,0.0001065,96043.0,96042.0,0.29181504]
[1739343782810,0.0011065,96043.0,96042.0,0.29781504]
[1739343783618,0.0021065,96043.0,96042.0,0.29781504]
[1739343783798,0.0011065,96043.0,96042.0,0.29181504]
[1739343784817,0.0001065,96043.0,96042.0,0.29181504]
[1739343785164,0.0001065,96043.0,96042.0,0.29281504]
[1739343785688,0.0001065,96043.0,96042.0,0.29181504]
[1739343785960,0.0011065,96043.0,96042.0,0.29781504]
[1739343786163,0.0007665,96043.0,96042.0,0.29781504]
[1739343789073,0.0007665,96043.0,96042.0,0.14163404]
[1739343791186,0.02029185,96043.0,96042.0,0.14163404]
[1739343791897,0.02810252,96043.0,96042.0,0.14163404]
[1739343793909,0.02810252,96043.0,96042.0,0.29781504]
[1739343797166,0.02820902,96043.0,96042.0,0.29781504]
[1739343797590,0.00868367,96043.0,96042.0,0.29781504]
[1739343798337,0.000873,96043.0,96042.0,0.29781504]
[1739343800428,0.000873,96043.0,96042.0,0.36924654]
[1739343800992,0.000873,96043.0,96042.0,0.29781504]
[1739343801598,0.0001065,96043.0,96042.0,0.29181504]
[1739343801855,0.0011065,96043.0,96042.0,0.29881504]
[1739343807857,0.0011065,96043.0,96042.0,0.40131869]
[1739343809735,0.0011065,96043.0,96042.0,0.41300159]
[1739343810175,0.0011065,96043.0,96042.0,0.51550524]
[1739343810853,0.0001065,96043.0,96042.0,0.50850524]
[1739343811005,0.0001065,96043.0,96042.0,0.51450524]
[1739343811507,0.0001065,96043.0,96042.0,0.50850524]
[1739343811730,0.0011065,96043.0,96042.0,0.52350524]
[1739343811932,0.0021065,96043.0,96042.0,0.52350524]
[1739343818122,0.0021065,96043.0,96042.0,0.42100159]
[1739343824771,0.0021065,96043.0,96042.0,0.74230159]
[1739343842663,0.09575965,96070.0,96042.0,0.58612059]
[1739343842867,0.25189565,96070.0,96061.0,0.15615]
[1739343843275,0.09575965,96070.0,96062.0,0.00750231]